[Event "FIDE WCCC Open-10 2024"]
[Site "Montesilvano"]
[Date "2024.11.18"]
[Round "2.9"]
[White "Skouroupathis, Kyriakos"]
[Black "Enkhbileg, Gantumur"]
[Result "0-1"]
[ECO "B09"]
[WhiteElo "1695"]
[BlackElo "1529"]
[PlyCount "45"]
[EventDate "2024.11.18"]
[EventType "swiss"]
[EventCountry "ITA"]
[TimeControl "5400+30"]

1. e4 {[%emt 0:00:00]} d6 {[%emt 0:00:06]} 2. d4 {[%emt 0:00:06]} Nf6 {[%emt 0:01:32]} 3. Nc3 {[%emt 0:00:09]} g6 {[%emt 0:00:10]} 4. f4 {[%emt 0:00:17]} Bg7 {[%emt 0:00:22]} 5. Nf3 {[%emt 0:00:31]} c5 {[%emt 0:00:29]} 6. dxc5 {[%emt 0:00:19]} Qa5 {[%emt 0:00:41]} 7. Qd3 {[%emt 0:00:13]} O-O {[%emt 0:45:35]} 8. Qb5 {[%emt 0:07:07]} Nc6 {[%emt 0:18:38]} 9. Qxa5 {[%emt 0:00:32]} Nxa5 {[%emt 0:00:03]} 10. cxd6 {[%emt 0:00:19]} exd6 {[%emt 0:00:21]} 11. Bd3 {[%emt 0:01:04]} Re8 {[%emt 0:01:38]} 12. O-O {[%emt 0:00:46]} Nc6 {[%emt 0:01:26]} 13. Bd2 {[%emt 0:06:50]} Bg4 {[%emt 0:25:59]} 14. Rae1 {[%emt 0:02:59]} Bxf3 {[%emt 0:00:00]} 15. Rxf3 {[%emt 0:00:11]} Nd4 {[%emt 0:00:00]} 16. Rff1 {[%emt 0:00:13]} a6 {[%emt 0:00:00]} 17. h3 {[%emt 0:14:16]} Nh5 {[%emt 0:00:00]} 18. Kh2 {[%emt 0:02:03]} Rac8 {[%emt 0:00:00]} 19. Nd5 {[%emt 0:03:33]} Nxc2 {[%emt 0:00:00]} 20. Rc1 {[%emt 0:00:28]} Bxb2 {[%emt 0:00:00]} 21. Rxc2 {[%emt 0:00:14]} Rxc2 {[%emt 0:00:00]} 22. Bxc2 {[%emt 0:00:02]} Rc8 {[%emt 0:00:00]} 23. Ne7+ {[%emt 0:01:41]} 0-1

[Event "FIDE WCCC Open-10 2024"]
[Site "Montesilvano"]
[Date "2024.11.18"]
[Round "2.10"]
[White "Blekh, Erik"]
[Black "Shangin, Lev"]
[Result "1/2-1/2"]
[ECO "A37"]
[WhiteElo "1790"]
[BlackElo "2056"]
[PlyCount "130"]
[EventDate "2024.11.18"]
[EventType "swiss"]
[EventCountry "ITA"]
[TimeControl "5400+30"]

1. Nf3 {[%emt 0:00:09]} c5 {[%emt 0:00:14]} 2. g3 {[%emt 0:00:23]} Nc6 {[%emt 0:00:32]} 3. Bg2 {[%emt 0:00:47]} g6 {[%emt 0:00:52]} 4. c4 {[%emt 0:01:46]} Bg7 {[%emt 0:01:42]} 5. Nc3 {[%emt 0:01:40]} d6 {[%emt 0:01:36]} 6. O-O {[%emt 0:03:41]} Nh6 {[%emt 0:05:17]} 7. a3 {[%emt 0:05:16]} O-O {[%emt 0:02:49]} 8. Rb1 {[%emt 0:01:35]} Bd7 {[%emt 0:04:19]} 9. d3 {[%emt 0:04:39]} Nf5 {[%emt 0:01:43]} 10. e3 {[%emt 0:02:13]} Rb8 {[%emt 0:02:57]} 11. Bd2 {[%emt 0:03:05]} e6 {[%emt 0:03:47]} 12. b4 {[%emt 0:06:48]} b6 {[%emt 0:01:27]} 13. Ne2 {[%emt 0:06:53]} Qc7 {[%emt 0:05:12]} 14. Bc3 {[%emt 0:03:09]} e5 {[%emt 0:02:42]} 15. Ba1 {[%emt 0:04:47]} cxb4 {[%emt 0:04:53]} 16. axb4 {[%emt 0:00:19]} a5 {[%emt 0:00:12]} 17. b5 {[%emt 0:03:12]} Nd8 {[%emt 0:02:29]} 18. Nc3 {[%emt 0:00:40]} Ne7 {[%emt 0:01:14]} 19. Qb3 {[%emt 0:06:55]} Ne6 {[%emt 0:01:00]} 20. Na4 {[%emt 0:01:22]} Rfc8 {[%emt 0:04:51]} 21. Qa3 {[%emt 0:03:35]} Nc5 {[%emt 0:05:43]} 22. Nd2 {[%emt 0:10:31]} Bf5 {[%emt 0:08:38]} 23. Nxc5 {[%emt 0:11:29]} Qxc5 {[%emt 0:01:28]} 24. Qc3 {[%emt 0:01:50]} Qc7 {[%emt 0:04:38]} 25. Rbc1 {[%emt 0:01:32]} Qd7 {[%emt 0:03:08]} 26. Qa3 {[%emt 0:00:39]} Be6 {[%emt 0:05:38]} 27. Nf3 {[%emt 0:03:33]} h6 {[%emt 0:01:05]} 28. Rfd1 {[%emt 0:00:28]} Bg4 {[%emt 0:02:54]} 29. Rd2 {[%emt 0:01:08]} Be6 {[%emt 0:01:55]} 30. Rdd1 {[%emt 0:00:59]} Rc7 {[%emt 0:03:10]} 31. Rd2 {[%emt 0:05:21]} Rbc8 {[%emt 0:00:53]} 32. Rdc2 {[%emt 0:00:08]} g5 {[%emt 0:01:59]} 33. e4 {[%emt 0:02:42]} f5 {[%emt 0:01:58]} 34. Nd2 {[%emt 0:00:11]} f4 {[%emt 0:00:51]} 35. Nb1 {[%emt 0:01:19]} Rf8 {[%emt 0:01:10]} 36. Nc3 {[%emt 0:01:33]} f3 {[%emt 0:01:13]} 37. Bh1 {[%emt 0:00:05]} g4 {[%emt 0:00:52]} 38. Na4 {[%emt 0:00:26]} Rb8 {[%emt 0:00:20]} 39. Bc3 {[%emt 0:01:20]} Ng6 {[%emt 0:01:53]} 40. Qb2 {[%emt 0:00:45]} Rcc8 {[%emt 0:00:24]} 41. Ra1 {[%emt 0:00:49]} Kf7 {[%emt 0:01:53]} 42. Qc1 {[%emt 0:00:26]} h5 {[%emt 0:00:49]} 43. Rca2 {[%emt 0:00:50]} h4 {[%emt 0:01:56]} 44. Nxb6 {[%emt 0:00:33]} Rxb6 {[%emt 0:00:08]} 45. Rxa5 {[%emt 0:00:05]} hxg3 {[%emt 0:00:40]} 46. fxg3 {[%emt 0:00:05]} Qc7 {[%emt 0:00:55]} 47. Bb4 {[%emt 0:00:41]} Bd7 {[%emt 0:02:56]} 48. Qe3 {[%emt 0:00:18]} Qd8 {[%emt 0:01:24]} 49. Ra7 {[%emt 0:00:29]} Kg8 {[%emt 0:01:14]} 50. Ba5 {[%emt 0:00:09]} Rcb8 {[%emt 0:00:38]} 51. Bxb6 {[%emt 0:00:23]} Rxb6 {[%emt 0:00:06]} 52. Rxd7 {[%emt 0:00:08]} Qxd7 {[%emt 0:00:16]} 53. Qxb6 {[%emt 0:00:07]} Qe7 {[%emt 0:00:47]} 54. Ra6 {[%emt 0:00:38]} Qg5 {[%emt 0:00:21]} 55. Ra1 {[%emt 0:00:41]} Kh7 {[%emt 0:02:07]} 56. Qf2 {[%emt 0:00:18]} Nf4 {[%emt 0:00:55]} 57. gxf4 {[%emt 0:03:27]} exf4 {[%emt 0:00:04]} 58. Rd1 {[%emt 0:00:00]} Qh5 {[%emt 0:01:08]} 59. Bxf3 {[%emt 0:00:00]} gxf3 {[%emt 0:00:09]} 60. Kh1 {[%emt 0:00:00]} Bd4 {[%emt 0:00:43]} 61. Qxd4 {[%emt 0:00:00]} f2 {[%emt 0:00:08]} 62. Qxf2 {[%emt 0:00:00]} Qxd1+ {[%emt 0:00:11]} 63. Kg2 {[%emt 0:00:05]} Qg4+ {[%emt 0:00:15]} 64. Kf1 {[%emt 0:01:24]} Qd1+ {[%emt 0:00:07]} 65. Kg2 {[%emt 0:00:10]} Qg4+ {[%emt 0:00:05]} 1/2-1/2

[Event "FIDE WCCC Open-10 2024"]
[Site "Montesilvano"]
[Date "2024.11.18"]
[Round "2.10"]
[White "Veber, Tibor"]
[Black "Lenkov, Stanislav"]
[Result "1/2-1/2"]
[ECO "B45"]
[WhiteElo "1532"]
[BlackElo "1693"]
[PlyCount "68"]
[EventDate "2024.11.18"]
[EventType "swiss"]
[EventCountry "ITA"]
[TimeControl "5400+30"]

1. e4 {[%emt 0:00:02]} c5 {[%emt 0:00:09]} 2. Nf3 {[%emt 0:00:08]} e6 {[%emt 0:00:02]} 3. d4 {[%emt 0:00:37]} cxd4 {[%emt 0:01:10]} 4. Nxd4 {[%emt 0:01:27]} Nf6 {[%emt 0:00:33]} 5. Nc3 {[%emt 0:00:22]} Nc6 {[%emt 0:00:58]} 6. Bg5 {[%emt 0:02:44]} Be7 {[%emt 0:02:34]} 7. Be3 {[%emt 0:01:53]} d5 {[%emt 0:01:32]} 8. exd5 {[%emt 0:00:23]} Nxd5 {[%emt 0:01:34]} 9. Nxc6 {[%emt 0:01:38]} bxc6 {[%emt 0:00:59]} 10. Nxd5 {[%emt 0:00:37]} cxd5 {[%emt 0:01:18]} 11. Bb5+ {[%emt 0:00:45]} Bd7 {[%emt 0:00:32]} 12. Bxd7+ {[%emt 0:00:16]} Qxd7 {[%emt 0:00:12]} 13. O-O {[%emt 0:00:42]} Bf6 {[%emt 0:00:42]} 14. c3 {[%emt 0:00:29]} Rb8 {[%emt 0:01:19]} 15. Qc2 {[%emt 0:00:24]} O-O {[%emt 0:00:18]} 16. Rfe1 {[%emt 0:00:39]} Qc7 {[%emt 0:00:55]} 17. Rad1 {[%emt 0:03:03]} Rfd8 {[%emt 0:03:26]} 18. Re2 {[%emt 0:01:55]} Rdc8 {[%emt 0:04:31]} 19. Rc1 {[%emt 0:02:13]} Qa5 {[%emt 0:05:12]} 20. Bf4 {[%emt 0:02:23]} Rb7 {[%emt 0:04:01]} 21. a3 {[%emt 0:01:40]} d4 {[%emt 0:06:45]} 22. c4 {[%emt 0:01:17]} Rd8 {[%emt 0:02:05]} 23. Qd3 {[%emt 0:00:35]} e5 {[%emt 0:01:34]} 24. Bg3 {[%emt 0:00:23]} Re8 {[%emt 0:03:04]} 25. b4 {[%emt 0:00:30]} Qc7 {[%emt 0:01:07]} 26. f4 {[%emt 0:02:16]} Qd6 {[%emt 0:06:59]} 27. Rce1 {[%emt 0:03:01]} Rbe7 {[%emt 0:01:33]} 28. fxe5 {[%emt 0:00:22]} Bxe5 {[%emt 0:00:26]} 29. Bxe5 {[%emt 0:00:13]} Rxe5 {[%emt 0:00:24]} 30. Rxe5 {[%emt 0:00:09]} Rxe5 {[%emt 0:00:21]} 31. Rxe5 {[%emt 0:00:10]} Qxe5 {[%emt 0:00:12]} 32. Kf2 {[%emt 0:00:11]} Qf4+ {[%emt 0:01:05]} 33. Qf3 {[%emt 0:00:31]} Qd2+ {[%emt 0:00:24]} 34. Qe2 {[%emt 0:00:35]} Qf4+ {[%emt 0:49:34] Qd1} 1/2-1/2

[Event "FIDE WCCC Open-10 2024"]
[Site "Montesilvano"]
[Date "2024.11.18"]
[Round "2.11"]
[White "Xia, Joshua"]
[Black "Cao, Frank Zhongtian"]
[Result "1-0"]
[ECO "B90"]
[WhiteElo "2052"]
[BlackElo "1793"]
[PlyCount "89"]
[EventDate "2024.11.18"]
[EventType "swiss"]
[EventCountry "ITA"]
[TimeControl "5400+30"]

1. e4 {[%emt 0:00:01]} c5 {[%emt 0:00:03]} 2. Nf3 {[%emt 0:00:05]} d6 {[%emt 0:00:03]} 3. d4 {[%emt 0:00:05]} cxd4 {[%emt 0:00:06]} 4. Nxd4 {[%emt 0:00:05]} Nf6 {[%emt 0:00:06]} 5. Nc3 {[%emt 0:00:04]} a6 {[%emt 0:00:04]} 6. Be3 {[%emt 0:00:05]} e5 {[%emt 0:00:10]} 7. Nb3 {[%emt 0:00:07]} Be6 {[%emt 0:00:06]} 8. f3 {[%emt 0:00:05]} Be7 {[%emt 0:00:08]} 9. Qd2 {[%emt 0:00:06]} O-O {[%emt 0:00:08]} 10. O-O-O {[%emt 0:00:07]} Nbd7 {[%emt 0:00:08]} 11. g4 {[%emt 0:00:05]} b5 {[%emt 0:00:09]} 12. g5 {[%emt 0:00:06]} Nh5 {[%emt 0:00:03]} 13. Nd5 {[%emt 0:00:09]} Bxd5 {[%emt 0:00:05]} 14. exd5 {[%emt 0:00:06]} f6 {[%emt 0:00:04]} 15. gxf6 {[%emt 0:00:04]} Bxf6 {[%emt 0:00:08]} 16. Na5 {[%emt 0:00:16]} Qe8 {[%emt 0:00:08]} 17. Bh3 {[%emt 0:00:27]} Nf4 {[%emt 0:06:36]} 18. Bxf4 {[%emt 0:04:43]} exf4 {[%emt 0:00:05]} 19. Be6+ {[%emt 0:00:13]} Kh8 {[%emt 0:00:11]} 20. Kb1 {[%emt 0:01:05]} Nc5 {[%emt 0:26:03]} 21. Rhe1 {[%emt 0:00:17]} Na4 {[%emt 0:13:28]} 22. c3 {[%emt 0:04:07]} b4 {[%emt 0:07:32]} 23. cxb4 {[%emt 0:00:20]} Bxb2 {[%emt 0:05:22]} 24. Qd3 {[%emt 0:01:52]} Bf6 {[%emt 0:08:57]} 25. Rc1 {[%emt 0:00:45]} Nb2 {[%emt 0:11:59]} 26. Qc2 {[%emt 0:02:04]} Qb5 {[%emt 0:02:55]} 27. Re4 {[%emt 0:01:35]} Na4 {[%emt 0:07:08]} 28. Qb3 {[%emt 0:03:18]} Nc5 {[%emt 0:04:20]} 29. bxc5 {[%emt 0:08:16]} Qxa5 {[%emt 0:00:08]} 30. Rb4 {[%emt 0:10:28]} dxc5 {[%emt 0:01:33]} 31. Rb7 {[%emt 0:01:02]} Be5 {[%emt 0:02:32]} 32. d6 {[%emt 0:02:53]} Bxd6 {[%emt 0:01:47]} 33. Qb2 {[%emt 0:02:30]} Bc7 {[%emt 0:01:28]} 34. Rg1 {[%emt 0:00:37]} Rf6 {[%emt 0:00:45]} 35. h4 {[%emt 0:09:37]} Rg6 {[%emt 0:01:31]} 36. Rxg6 {[%emt 0:07:14]} hxg6 {[%emt 0:00:04]} 37. Qe2 {[%emt 0:01:20]} Rb8 {[%emt 0:01:25]} 38. Rxb8+ {[%emt 0:00:21]} Bxb8 {[%emt 0:00:05]} 39. Bc4 {[%emt 0:03:06]} Qb6+ {[%emt 0:00:19]} 40. Kc2 {[%emt 0:00:13]} Qd8 {[%emt 0:01:25]} 41. Qe6 {[%emt 0:00:44]} Kh7 {[%emt 0:00:59]} 42. h5 {[%emt 0:00:57]} gxh5 {[%emt 0:00:37]} 43. Bd3+ {[%emt 0:00:11]} Kh8 {[%emt 0:00:22]} 44. Qg6 {[%emt 0:00:13]} Kg8 {[%emt 0:00:08]} 45. Bc4+ {[%emt 0:00:04]} 1-0

[Event "FIDE WCCC Open-10 2024"]
[Site "Montesilvano"]
[Date "2024.11.18"]
[Round "2.11"]
[White "Lee, Yugeon"]
[Black "Thorulsley, Kairaav"]
[Result "0-1"]
[ECO "E22"]
[WhiteElo "1690"]
[BlackElo "1520"]
[PlyCount "112"]
[EventDate "2024.11.18"]
[EventType "swiss"]
[EventCountry "ITA"]
[TimeControl "5400+30"]

1. d4 {[%emt 0:00:06]} Nf6 {[%emt 0:00:06]} 2. c4 {[%emt 0:00:05]} e6 {[%emt 0:00:04]} 3. Nc3 {[%emt 0:00:03]} Bb4 {[%emt 0:00:04]} 4. Qc2 {[%emt 0:00:04]} Bxc3+ {[%emt 0:00:04]} 5. Qxc3 {[%emt 0:00:06]} Ne4 {[%emt 0:00:04]} 6. Qc2 {[%emt 0:00:04]} f5 {[%emt 0:00:05]} 7. Nf3 {[%emt 0:00:40]} b6 {[%emt 0:00:04]} 8. g3 {[%emt 0:00:08]} Bb7 {[%emt 0:00:03]} 9. Bg2 {[%emt 0:00:04]} d6 {[%emt 0:00:38]} 10. Ng5 {[%emt 0:01:08]} Qf6 {[%emt 0:30:05]} 11. Nxe4 {[%emt 0:02:46]} fxe4 {[%emt 0:00:06]} 12. Bxe4 {[%emt 0:00:11]} Bxe4 {[%emt 0:01:11]} 13. Qxe4 {[%emt 0:00:07]} c6 {[%emt 0:00:07]} 14. O-O {[%emt 0:01:22]} O-O {[%emt 0:00:06]} 15. d5 {[%emt 0:02:49]} exd5 {[%emt 0:00:05]} 16. cxd5 {[%emt 0:00:04]} c5 {[%emt 0:00:05]} 17. Rb1 {[%emt 0:03:48]} Nd7 {[%emt 0:00:08]} 18. Qe6+ {[%emt 1:25:55]} Qf7 {[%emt 0:00:13]} 19. Qxd6 {[%emt 0:00:00]} Nf6 {[%emt 0:00:23]} 20. e4 {[%emt 0:00:00]} Nxe4 {[%emt 0:00:07]} 21. Qe6 {[%emt 0:00:00]} Qxe6 {[%emt 0:00:07]} 22. dxe6 {[%emt 0:00:00]} Rae8 {[%emt 0:00:48]} 23. f3 {[%emt 0:00:00]} Nd6 {[%emt 0:00:09]} 24. Bf4 {[%emt 0:00:00]} Rxe6 {[%emt 0:00:27]} 25. Rfe1 {[%emt 0:00:00]} Rfe8 {[%emt 0:02:25]} 26. Kf2 {[%emt 0:00:00]} Rxe1 {[%emt 0:01:15]} 27. Rxe1 {[%emt 0:00:00]} Rxe1 {[%emt 0:00:02]} 28. Kxe1 {[%emt 0:00:00]} Nc8 {[%emt 0:00:05]} 29. Ke2 {[%emt 0:00:00]} Kf7 {[%emt 0:00:05]} 30. Kd3 {[%emt 0:00:00]} Ke6 {[%emt 0:00:16]} 31. Ke4 {[%emt 0:00:00]} g6 {[%emt 0:00:18]} 32. b3 {[%emt 0:00:00]} Nd6+ {[%emt 0:01:41]} 33. Bxd6 {[%emt 0:00:00]} Kxd6 {[%emt 0:00:04]} 34. g4 {[%emt 0:00:00]} Ke6 {[%emt 0:00:25]} 35. h4 {[%emt 0:00:00]} h6 {[%emt 0:02:12]} 36. a4 {[%emt 0:00:00]} a6 {[%emt 0:00:22]} 37. f4 {[%emt 0:00:00]} b5 {[%emt 0:01:03]} 38. a5 {[%emt 0:00:00]} Kd6 {[%emt 0:10:47]} 39. f5 {[%emt 0:00:00]} gxf5+ {[%emt 0:01:09]} 40. gxf5 {[%emt 0:00:00]} h5 {[%emt 0:03:21]} 41. f6 {[%emt 0:00:00]} Ke6 {[%emt 0:00:51]} 42. f7 {[%emt 0:00:00]} Kxf7 {[%emt 0:00:03]} 43. Kd5 {[%emt 0:00:00]} c4 {[%emt 0:02:00]} 44. bxc4 {[%emt 0:00:00]} b4 {[%emt 0:00:04]} 45. c5 {[%emt 0:00:00]} b3 {[%emt 0:00:07]} 46. c6 {[%emt 0:00:00]} Ke7 {[%emt 0:00:11]} 47. Kc4 {[%emt 0:14:30]} b2 {[%emt 0:00:05]} 48. Kc3 {[%emt 0:00:00]} b1=Q {[%emt 0:00:07]} 49. Kd2 {[%emt 0:00:00]} Qb4+ {[%emt 0:00:09]} 50. Kd1 {[%emt 0:00:00]} Qb2 {[%emt 0:00:17]} 51. Ke1 {[%emt 0:00:00]} Kd6 {[%emt 0:00:04]} 52. Kd1 {[%emt 0:00:00]} Kxc6 {[%emt 0:00:03]} 53. Ke1 {[%emt 0:00:00]} Kd5 {[%emt 0:00:13]} 54. Kd1 {[%emt 0:00:00]} Kd4 {[%emt 0:00:07]} 55. Ke1 {[%emt 0:00:00]} Ke3 {[%emt 0:00:05]} 56. Kd1 {[%emt 0:00:00]} Qb1# {[%emt 0:00:04]} 0-1

[Event "FIDE WCCC Open-10 2024"]
[Site "Montesilvano"]
[Date "2024.11.18"]
[Round "2.12"]
[White "Liu, Liam"]
[Black "Filipovs, Sergejs"]
[Result "0-1"]
[ECO "C45"]
[WhiteElo "1783"]
[BlackElo "2012"]
[PlyCount "104"]
[EventDate "2024.11.18"]
[EventType "swiss"]
[EventCountry "ITA"]
[TimeControl "5400+30"]

1. e4 {[%emt 0:00:04]} e5 {[%emt 0:00:05]} 2. Nf3 {[%emt 0:00:11]} Nc6 {[%emt 0:00:06]} 3. d4 {[%emt 0:00:05]} exd4 {[%emt 0:00:05]} 4. Nxd4 {[%emt 0:00:08]} Nf6 {[%emt 0:00:07]} 5. Nxc6 {[%emt 0:00:14]} bxc6 {[%emt 0:00:07]} 6. e5 {[%emt 0:00:07]} Qe7 {[%emt 0:00:07]} 7. Qe2 {[%emt 0:00:12]} Nd5 {[%emt 0:00:07]} 8. c4 {[%emt 0:00:07]} Ba6 {[%emt 0:00:07]} 9. b3 {[%emt 0:00:06]} g6 {[%emt 0:00:26]} 10. f4 {[%emt 0:00:06]} d6 {[%emt 0:00:46]} 11. exd6 {[%emt 0:09:15]} Qxe2+ {[%emt 0:00:25]} 12. Bxe2 {[%emt 0:00:19]} Bg7 {[%emt 0:01:38]} 13. cxd5 {[%emt 0:00:11]} Bxe2 {[%emt 0:00:04]} 14. Kxe2 {[%emt 0:00:12]} Bxa1 {[%emt 0:00:06]} 15. dxc6 {[%emt 0:02:24]} cxd6 {[%emt 0:00:06]} 16. Ba3 {[%emt 0:00:26]} O-O-O {[%emt 0:00:24]} 17. Nd2 {[%emt 0:01:34]} Rhe8+ {[%emt 0:00:19]} 18. Kf3 {[%emt 0:02:05]} Bd4 {[%emt 0:01:34]} 19. Nc4 {[%emt 0:02:31]} Bc5 {[%emt 0:04:31]} 20. b4 {[%emt 0:02:56]} d5 {[%emt 0:01:57]} 21. Ne5 {[%emt 0:01:57]} f6 {[%emt 0:03:18]} 22. Nf7 {[%emt 0:08:54]} Re3+ {[%emt 0:00:48]} 23. Kf2 {[%emt 0:11:19]} Rxa3+ {[%emt 0:00:44]} 24. bxc5 {[%emt 0:00:08]} Rxa2+ {[%emt 0:00:06]} 25. Kf3 {[%emt 0:01:35]} Rf8 {[%emt 0:00:46]} 26. Nd6+ {[%emt 0:00:37]} Kc7 {[%emt 0:00:15]} 27. Nb5+ {[%emt 0:00:05]} Kxc6 {[%emt 0:00:27]} 28. Nd4+ {[%emt 0:00:07]} Kd7 {[%emt 0:00:46]} 29. Rb1 {[%emt 0:07:07]} Rc8 {[%emt 0:07:02]} 30. c6+ {[%emt 0:09:13]} Kd6 {[%emt 0:01:42]} 31. Rc1 {[%emt 0:00:34]} a6 {[%emt 0:01:15]} 32. Re1 {[%emt 0:03:13]} Kc5 {[%emt 0:03:31]} 33. Rd1 {[%emt 0:01:49]} Ra4 {[%emt 0:01:05]} 34. Ne6+ {[%emt 0:00:36]} Kxc6 {[%emt 0:00:20]} 35. f5 {[%emt 0:01:55]} Rb8 {[%emt 0:03:30]} 36. Nd4+ {[%emt 0:01:08]} Kd6 {[%emt 0:00:54]} 37. g3 {[%emt 0:02:04]} Rbb4 {[%emt 0:00:58]} 38. Ne6 {[%emt 0:00:11]} g5 {[%emt 0:01:13]} 39. Nf8 {[%emt 0:00:30]} g4+ {[%emt 0:00:24]} 40. Kf2 {[%emt 0:00:09]} Rb2+ {[%emt 0:00:34]} 41. Kg1 {[%emt 0:00:27]} Raa2 {[%emt 0:01:48]} 42. Nxh7 {[%emt 0:00:16]} Rg2+ {[%emt 0:00:25]} 43. Kf1 {[%emt 0:00:02]} Rxh2 {[%emt 0:00:13]} 44. Kg1 {[%emt 0:00:03]} Rxh7 {[%emt 0:00:13]} 45. Rc1 {[%emt 0:00:18]} Rc7 {[%emt 0:00:25]} 46. Re1 {[%emt 0:00:06]} d4 {[%emt 0:00:07]} 47. Rd1 {[%emt 0:00:08]} Kd5 {[%emt 0:00:13]} 48. Kf1 {[%emt 0:00:06]} Ke4 {[%emt 0:00:54]} 49. Ke1 {[%emt 0:00:09]} Rh7 {[%emt 0:00:20]} 50. Rd2 {[%emt 0:00:47]} Rh1+ {[%emt 0:00:10]} 51. Ke2 {[%emt 0:00:02]} d3+ {[%emt 0:00:14]} 52. Kf2 {[%emt 0:00:14]} Rxd2# {[%emt 0:00:03]} 0-1

[Event "FIDE WCCC Open-10 2024"]
[Site "Montesilvano"]
[Date "2024.11.18"]
[Round "2.12"]
[White "Youn, Laeho"]
[Black "Kazimzade, Mahammad"]
[Result "0-1"]
[ECO "C56"]
[WhiteElo "1520"]
[BlackElo "1687"]
[PlyCount "72"]
[EventDate "2024.11.18"]
[EventType "swiss"]
[EventCountry "ITA"]
[TimeControl "5400+30"]

1. e4 {[%emt 0:00:03]} e5 {[%emt 0:00:07]} 2. Nf3 {[%emt 0:00:05]} Nc6 {[%emt 0:00:10]} 3. d4 {[%emt 0:00:06]} exd4 {[%emt 0:00:17]} 4. Bc4 {[%emt 0:00:06]} Nf6 {[%emt 0:00:11]} 5. e5 {[%emt 0:00:08]} d5 {[%emt 0:00:07]} 6. Bb5 {[%emt 0:00:05]} Ne4 {[%emt 0:00:05]} 7. Nxd4 {[%emt 0:00:12]} Bd7 {[%emt 0:00:40]} 8. Bxc6 {[%emt 0:00:23]} bxc6 {[%emt 0:00:16]} 9. O-O {[%emt 0:00:49]} Bc5 {[%emt 0:00:26]} 10. f3 {[%emt 0:00:19]} Ng5 {[%emt 0:00:51]} 11. f4 {[%emt 0:00:27]} Ne4 {[%emt 0:00:52]} 12. Be3 {[%emt 0:00:16]} Bb6 {[%emt 0:00:14]} 13. Nd2 {[%emt 0:00:31]} Nxd2 {[%emt 0:01:00]} 14. Qxd2 {[%emt 0:00:09]} c5 {[%emt 0:00:16]} 15. Nf3 {[%emt 0:00:16]} d4 {[%emt 0:00:09]} 16. Bf2 {[%emt 0:00:05]} Bc6 {[%emt 0:00:06]} 17. Bh4 {[%emt 0:00:18]} Qd7 {[%emt 0:00:15]} 18. Rae1 {[%emt 0:03:32]} O-O {[%emt 0:00:46]} 19. c4 {[%emt 0:02:23]} Qg4 {[%emt 0:04:15]} 20. Bg3 {[%emt 0:05:30]} Rae8 {[%emt 0:02:52]} 21. Qd3 {[%emt 0:01:39]} Ba5 {[%emt 0:02:02]} 22. Ng5 {[%emt 0:03:23]} Qh5 {[%emt 0:00:26]} 23. Re2 {[%emt 0:03:06]} Bd7 {[%emt 0:05:42]} 24. e6 {[%emt 0:04:07]} fxe6 {[%emt 0:01:55]} 25. Re5 {[%emt 0:00:24]} Rf5 {[%emt 0:01:05]} 26. Ne4 {[%emt 0:02:55]} Bc6 {[%emt 0:04:59]} 27. Nxc5 {[%emt 0:01:24]} Rxe5 {[%emt 0:04:43]} 28. fxe5 {[%emt 0:00:10]} Bb6 {[%emt 0:00:04]} 29. Nb3 {[%emt 0:00:27]} a5 {[%emt 0:02:28]} 30. c5 {[%emt 0:00:24]} a4 {[%emt 0:00:31]} 31. cxb6 {[%emt 0:00:38]} axb3 {[%emt 0:00:05]} 32. Qxb3 {[%emt 0:00:48]} Qe2 {[%emt 0:01:24]} 33. Bf2 {[%emt 0:01:20]} Bd5 {[%emt 0:02:13]} 34. Qa4 {[%emt 0:00:53]} Rf8 {[%emt 0:00:27]} 35. bxc7 {[%emt 0:00:53]} Qe4 {[%emt 0:00:16]} 36. g4 {[%emt 0:18:56]} Qh1# {[%emt 0:00:24]} 0-1

[Event "FIDE WCCC Open-10 2024"]
[Site "Montesilvano"]
[Date "2024.11.18"]
[Round "2.13"]
[White "Ten Dam, Bram"]
[Black "Neuschild, Marius"]
[Result "1-0"]
[ECO "C54"]
[WhiteElo "2012"]
[BlackElo "1786"]
[PlyCount "107"]
[EventDate "2024.11.18"]
[EventType "swiss"]
[EventCountry "ITA"]
[TimeControl "5400+30"]

1. e4 {[%emt 0:00:04]} e5 {[%emt 0:00:02]} 2. Nf3 {[%emt 0:00:06]} Nc6 {[%emt 0:00:03]} 3. Bc4 {[%emt 0:00:18]} Bc5 {[%emt 0:00:06]} 4. c3 {[%emt 0:00:06]} Nf6 {[%emt 0:00:07]} 5. d3 {[%emt 0:00:04]} d6 {[%emt 0:00:08]} 6. a4 {[%emt 0:00:19]} a6 {[%emt 0:00:13]} 7. O-O {[%emt 0:00:20]} Ba7 {[%emt 0:00:09]} 8. b4 {[%emt 0:00:39]} h6 {[%emt 0:05:27]} 9. Re1 {[%emt 0:02:56]} O-O {[%emt 0:16:23]} 10. h3 {[%emt 0:00:42]} g5 {[%emt 0:02:43]} 11. Be3 {[%emt 0:02:44]} Bxe3 {[%emt 0:03:42]} 12. Rxe3 {[%emt 0:01:31]} g4 {[%emt 0:06:21]} 13. Nh2 {[%emt 0:04:03]} gxh3 {[%emt 0:03:01]} 14. g3 {[%emt 0:02:55]} Kh7 {[%emt 0:04:16]} 15. Nd2 {[%emt 0:04:47]} d5 {[%emt 0:17:18]} 16. exd5 {[%emt 0:01:29]} Nxd5 {[%emt 0:01:01]} 17. Re1 {[%emt 0:05:24]} f6 {[%emt 0:10:11]} 18. Rc1 {[%emt 0:02:27]} Nb6 {[%emt 0:17:11]} 19. Bb3 {[%emt 0:02:19]} Bf5 {[%emt 0:02:00]} 20. a5 {[%emt 0:01:44]} Nc8 {[%emt 0:02:35]} 21. Qh5 {[%emt 0:02:08]} N8e7 {[%emt 0:02:04]} 22. Rcd1 {[%emt 0:01:42]} Qe8 {[%emt 0:01:34]} 23. Qf3 {[%emt 0:01:36]} Qg6 {[%emt 0:01:06]} 24. Ndf1 {[%emt 0:01:58]} Rad8 {[%emt 0:01:21]} 25. Bc4 {[%emt 0:02:35]} Rd6 {[%emt 0:02:15]} 26. d4 {[%emt 0:12:56]} e4 {[%emt 0:00:56]} 27. Qe2 {[%emt 0:01:31]} Nd5 {[%emt 0:01:01]} 28. Bxd5 {[%emt 0:00:42]} Rxd5 {[%emt 0:00:02]} 29. Ne3 {[%emt 0:00:10]} Rdd8 {[%emt 0:00:52]} 30. Nxf5 {[%emt 0:01:15]} Qxf5 {[%emt 0:00:02]} 31. Qxe4 {[%emt 0:00:36]} Qxe4 {[%emt 0:00:15]} 32. Rxe4 {[%emt 0:00:07]} Rfe8 {[%emt 0:01:07]} 33. Rde1 {[%emt 0:01:22]} Rxe4 {[%emt 0:00:08]} 34. Rxe4 {[%emt 0:00:06]} Kg6 {[%emt 0:01:05]} 35. Nf3 {[%emt 0:02:17]} h5 {[%emt 0:00:32]} 36. Kh2 {[%emt 0:01:51]} Rd7 {[%emt 0:00:35]} 37. Kxh3 {[%emt 0:01:04]} Re7 {[%emt 0:00:17]} 38. Nh4+ {[%emt 0:00:50]} Kf7 {[%emt 0:00:31]} 39. f3 {[%emt 0:00:36]} Rxe4 {[%emt 0:00:33]} 40. fxe4 {[%emt 0:00:09]} b6 {[%emt 0:00:42]} 41. d5 {[%emt 0:01:31]} Ne5 {[%emt 0:00:13]} 42. b5 {[%emt 0:07:32]} bxa5 {[%emt 0:00:46]} 43. bxa6 {[%emt 0:00:20]} Nc4 {[%emt 0:00:26]} 44. a7 {[%emt 0:00:10]} Nb6 {[%emt 0:00:02]} 45. Nf5 {[%emt 0:00:25]} a4 {[%emt 0:00:29]} 46. c4 {[%emt 0:01:07]} a3 {[%emt 0:00:07]} 47. Nd4 {[%emt 0:00:07]} a2 {[%emt 0:00:20]} 48. Nb3 {[%emt 0:00:13]} Na8 {[%emt 0:00:50]} 49. Kh4 {[%emt 0:00:39]} Kg6 {[%emt 0:01:03]} 50. c5 {[%emt 0:00:18]} f5 {[%emt 0:00:36]} 51. e5 {[%emt 0:00:17]} c6 {[%emt 0:00:33]} 52. d6 {[%emt 0:00:15]} Kf7 {[%emt 0:00:15]} 53. Kxh5 {[%emt 0:00:25]} Ke6 {[%emt 0:00:04]} 54. Kg6 {[%emt 0:00:14]} 1-0